bitfinex/quotes_ETHUSD_20230903
["timestamp","ask_amount","ask_price","bid_price","bid_amount"]
[1693764889495,1.574,1633.5,1633.4,3.30658756]
[1693764889681,1.574,1633.5,1633.4,3.316616]
[1693764894705,1.574,1633.5,1633.4,0.01002844]
[1693764895713,1.574,1633.5,1633.2,0.63701609]
[1693764895907,1.574,1633.4,1633.2,1.70087856]
[1693764896086,1.574,1633.4,1633.3,0.64733791]
[1693764896277,1.574,1633.4,1633.3,1.71120038]
[1693764896704,1.574,1633.4,1633.3,1.72087062]
[1693764897387,1.574,1633.4,1633.3,0.65700815]
[1693764897806,1.574,1633.4,1633.3,1.06382035]
[1693764898308,1.574,1633.4,1633.3,1.71105602]
[1693764898727,1.574,1633.4,1633.3,1.72072626]
[1693764903509,1.574,1633.4,1633.3,0.65690591]
[1693764907629,1.574,1633.4,1633.3,1.72074563]
[1693764910497,1.574,1633.5,1633.3,1.72074563]
[1693764910731,1.574,1633.5,1633.3,0.65690591]
[1693764912438,6.5717,1633.7,1633.3,0.65690591]
[1693764912737,6.5717,1633.7,1633.4,1.06376987]
[1693764913034,4.574,1633.7,1633.4,1.06376987]
[1693764913243,4.574,1633.7,1633.4,2.3885]
[1693764920337,3.0,1633.7,1633.4,2.3885]
[1693764921845,4.574,1633.7,1633.4,2.3885]
[1693764922043,5.23117,1633.7,1633.4,2.3885]
[1693764926649,3.65717,1633.7,1633.4,2.3885]
[1693764926838,1.574,1633.6,1633.4,2.3885]
[1693764927251,1.574,1633.6,1633.5,0.79117407]
[1693764927748,1.574,1633.6,1633.5,0.80082851]
[1693764929757,1.574,1633.6,1633.5,0.79117407]
[1693764932858,1.574,1633.6,1633.4,2.3885]
[1693764933226,1.574,1633.6,1633.5,1.03073034]
[1693764933431,4.574,1633.7,1633.5,1.03073034]
[1693764933864,4.574,1633.7,1633.4,2.3885]
[1693764937666,1.9977,1633.8,1633.4,2.78699004]
[1693764937961,30.41,1634.0,1633.5,4.7841116]
[1693764938172,1.9747,1634.0,1633.6,1.70225756]
[1693764938332,1.9747,1634.0,1633.6,4.04405756]
[1693764938532,1.9747,1634.0,1633.7,1.46810315]
[1693764938754,1.9747,1634.0,1633.7,0.41774076]
[1693764939127,1.574,1634.1,1633.7,3.4995948]
[1693764939334,30.41,1634.2,1633.7,3.4995948]
[1693764939535,32.4397,1634.2,1633.8,2.69175948]
[1693764939939,3.0,1634.1,1633.8,2.69175948]
[1693764940541,5.0297,1634.2,1633.8,2.69175948]
[1693764942280,1.574,1634.1,1633.8,2.69175948]
[1693764942456,4.574,1634.1,1633.8,2.69175948]
[1693764950854,1.574,1634.2,1633.8,5.77361352]
[1693764951067,48.29,1634.3,1633.9,0.57736135]
[1693764951252,37.0269,1634.4,1633.9,1.64080247]
[1693764951453,3.0,1634.3,1633.9,0.57736135]
[1693764951652,3.0,1634.3,1634.0,3.39291948]
[1693764951852,3.0,1634.3,1634.0,3.40621229]
[1693764952052,3.0,1634.3,1634.1,0.34062123]
[1693764952365,3.0,1634.3,1634.0,2.36359281]
[1693764952762,3.0,1634.3,1634.0,2.3503]
[1693764953660,3.0,1634.3,1634.1,0.013278]
[1693764953895,3.0,1634.3,1634.1,1.05583319]
[1693764955797,4.888,1634.4,1634.1,1.05583319]
[1693764955960,4.888,1634.4,1634.1,1.46030253]
[1693764959592,6.462,1634.4,1634.1,1.46030253]
[1693764960098,6.462,1634.4,1634.1,0.41774734]
[1693764960584,6.462,1634.4,1634.1,0.013278]
[1693764960785,1.574,1634.2,1634.0,2.98886017]
[1693764960989,0.93597491,1634.2,1634.1,1.06337515]
[1693764961188,0.93597491,1634.2,1634.1,2.10593034]
[1693764961768,0.93597491,1634.2,1634.1,2.11920834]
[1693764961967,4.574,1634.3,1634.1,2.63001519]
[1693764962176,4.574,1634.3,1634.1,1.56664004]
[1693764975442,3.462,1634.4,1634.1,1.56664004]
[1693764975591,1.574,1634.5,1634.2,1.06334129]
[1693764975924,32.3553,1634.7,1634.3,1.04237341]
[1693764975925,3.508,1634.6,1634.3,1.04237341]
[1693764976098,1.934,1634.6,1634.3,1.04237341]
[1693764976620,3.508,1634.6,1634.3,1.04237341]
[1693764977697,3.508,1634.6,1634.2,3.30701432]
[1693764977905,3.508,1634.6,1634.3,1.3939949]
[1693764978229,3.508,1634.6,1634.3,1.3724726]
[1693764978397,3.508,1634.6,1634.3,0.33070143]
[1693764981758,3.508,1634.6,1634.4,0.01325253]
[1693764982055,3.508,1634.6,1634.4,1.05495945]
[1693764982217,3.508,1634.6,1634.4,0.01325253]
[1693764982822,3.508,1634.6,1634.3,0.33070143]
[1693764983333,3.508,1634.6,1634.4,1.06329702]
[1693764983534,3.508,1634.6,1634.3,0.9692616]
[1693764983848,3.508,1634.6,1634.4,1.06329735]
[1693764984356,3.508,1634.6,1634.3,0.33070143]
[1693764988139,3.508,1634.6,1634.4,1.04170692]
[1693764988648,3.508,1634.6,1634.3,0.33070143]
[1693764989243,3.508,1634.6,1634.4,1.04170692]
[1693764989547,3.508,1634.6,1634.3,0.33070143]
[1693764989942,3.508,1634.6,1634.5,1.04164267]
[1693764990140,6.508,1634.6,1634.5,1.04164267]
[1693764990315,6.508,1634.6,1634.3,0.33070143]
[1693764990641,6.508,1634.6,1634.4,1.04170692]
[1693764990821,6.508,1634.6,1634.4,1.05488253]
[1693764991011,6.508,1634.6,1634.4,0.01317561]
[1693764991941,6.508,1634.6,1634.3,0.33070143]
[1693764996160,1.574,1634.5,1634.3,0.33070143]
[1693764996623,3.6003,1634.5,1634.3,0.33070143]
[1693764996955,1.574,1634.4,1634.2,2.66845415]
[1693764997826,1.574,1634.4,1634.3,0.013184]
[1693764998173,2.0263,1634.5,1634.3,1.05495517]
[1693764998174,3.6003,1634.5,1634.3,1.05495517]
[1693764998347,3.6003,1634.5,1634.3,0.013184]
[1693764998860,3.6003,1634.5,1634.2,2.66845415]
[1693764999349,3.6003,1634.5,1634.3,1.04177117]
[1693764999660,3.6003,1634.5,1634.2,2.66845415]
[1693765000073,3.6003,1634.5,1634.3,1.04177117]
[1693765000370,3.6003,1634.5,1634.2,2.66845415]
[1693765000752,3.6003,1634.5,1634.3,1.05495517]
[1693765001291,3.6003,1634.5,1634.3,0.013184]
[1693765001733,3.6003,1634.5,1634.2,2.66845415]
[1693765002253,3.6003,1634.5,1634.3,1.04177117]
[1693765002455,3.6003,1634.5,1634.2,2.66845415]
[1693765002851,3.6003,1634.5,1634.4,0.01317561]
[1693765003987,3.6003,1634.5,1634.2,2.66845415]
[1693765004358,3.6003,1634.5,1634.4,1.04170692]
[1693765004551,3.6003,1634.5,1634.2,2.66845415]
[1693765005687,3.6003,1634.5,1634.2,0.32685415]
[1693765005910,3.0,1634.4,1634.3,0.013184]
[1693765006066,3.5867,1634.4,1634.3,0.013184]
[1693765006411,6.5867,1634.4,1634.3,0.013184]
[1693765006574,7.70277,1634.4,1634.3,0.013184]
[1693765006780,7.70277,1634.4,1633.9,2.96976017]
[1693765007015,7.70277,1634.4,1634.0,1.06339124]
[1693765007671,7.70277,1634.4,1633.9,2.3312]
[1693765007875,6.5867,1634.4,1633.9,2.3312]
[1693765008087,6.5867,1634.4,1634.0,0.99832034]
[1693765008611,6.5867,1634.4,1633.9,2.3312]
[1693765009294,6.5867,1634.4,1634.0,0.99832034]
[1693765009459,6.5867,1634.4,1633.9,2.3312]
[1693765009661,6.5867,1634.4,1633.9,2.72396004]
[1693765009859,6.5867,1634.4,1634.1,0.01269065]
[1693765010704,6.5867,1634.4,1633.9,2.72396004]
[1693765011193,6.5867,1634.4,1634.0,0.99832034]
[1693765011588,1.574,1634.2,1633.9,2.72396004]
[1693765011959,1.574,1634.2,1634.0,0.99832034]
[1693765012374,1.574,1634.2,1634.0,0.37222804]
[1693765012799,1.574,1634.2,1634.1,0.01269065]
[1693765017393,1.574,1634.3,1634.1,0.01269065]
[1693765017829,1.574,1634.3,1634.0,0.37222804]
[1693765018002,3.5428,1634.3,1634.0,0.37222804]
[1693765020833,3.5428,1634.3,1634.1,0.01269065]
[1693765021710,1.574,1634.3,1634.0,0.37222804]
[1693765022112,1.574,1634.3,1634.1,0.99825606]
[1693765022307,1.574,1634.4,1634.1,0.99825606]
[1693765022797,1.574,1634.4,1634.2,0.01268225]
[1693765023695,1.574,1634.4,1634.1,2.3107]
[1693765024310,1.574,1634.4,1634.2,0.99819179]
[1693765024637,1.574,1634.4,1634.1,2.3107]
[1693765025134,1.574,1634.4,1634.3,0.99812752]
[1693765025703,1.574,1634.4,1634.1,2.3107]
[1693765025904,1.574,1634.4,1634.3,0.99812752]
[1693765026305,1.574,1634.4,1634.1,2.3107]
[1693765026816,1.574,1634.4,1634.2,1.01087404]
[1693765027015,1.574,1634.4,1634.2,1.34303144]
[1693765027538,1.574,1634.4,1634.2,0.34483965]
[1693765027741,1.574,1634.4,1634.2,0.3321574]
[1693765031044,6.6076,1634.5,1634.2,0.3321574]
[1693765041036,1.574,1634.7,1634.2,0.3321574]
[1693765041351,1.9201,1634.7,1634.2,4.05222104]
[1693765041559,1.9201,1634.7,1634.3,3.64132919]
[1693765041721,1.9201,1634.7,1634.3,2.5781221]
[1693765044570,1.9201,1634.7,1634.3,5.65997614]
[1693765047155,32.4251,1634.8,1634.4,4.14492854]
[1693765047357,2.0151,1634.8,1634.5,0.41449285]
[1693765047739,2.0151,1634.8,1634.6,1.00913738]
[1693765048160,2.0151,1634.8,1634.6,0.01263781]
[1693765048375,2.0151,1634.8,1634.7,0.99643533]
[1693765048737,2.0151,1634.8,1634.5,2.62839285]
[1693765049161,2.0151,1634.8,1634.6,0.99649957]
[1693765049481,2.0151,1634.8,1634.6,1.35898881]
[1693765049771,2.0151,1634.8,1634.7,0.01262941]
[1693765050740,2.0151,1634.8,1634.6,0.36248924]
[1693765051269,0.101,1635.0,1634.7,0.99643533]
[1693765051472,0.101,1635.0,1634.7,3.08185404]
[1693765051656,0.101,1635.0,1634.8,0.3081854]
[1693765051858,0.051,1635.0,1634.8,0.32080642]
[1693765052959,0.101,1635.1,1634.8,0.32080642]
[1693765053481,1.675,1635.1,1634.8,0.32080642]
[1693765053885,1.675,1635.1,1634.8,0.3081854]
[1693765054750,1.675,1635.1,1634.9,0.01260345]
[1693765055863,1.675,1635.1,1634.8,0.3081854]
[1693765056109,0.101,1635.1,1634.8,0.3081854]
[1693765056762,0.101,1635.1,1634.9,0.01260345]
[1693765057758,0.101,1635.1,1634.8,0.3081854]
[1693765058161,0.101,1635.1,1634.9,0.99568314]
[1693765058551,0.101,1635.1,1634.8,0.3081854]
[1693765059250,0.101,1635.1,1634.9,0.99568314]
[1693765059587,0.101,1635.1,1634.8,0.3081854]
[1693765059793,0.101,1635.1,1635.0,0.01259506]
[1693765060765,0.101,1635.1,1634.8,0.3081854]
[1693765061074,0.101,1635.1,1635.0,0.99555914]
[1693765061274,0.101,1635.1,1634.8,0.3081854]
[1693765061793,0.101,1635.1,1634.9,1.00828659]
[1693765067803,1.9693,1635.1,1634.9,1.00828659]
[1693765069900,1.574,1635.0,1634.9,1.00828659]
[1693765070099,0.93622421,1635.0,1634.9,1.00828659]
[1693765070499,0.93622421,1635.0,1634.9,0.01260345]
[1693765070872,0.93622421,1635.0,1634.7,3.92201111]
[1693765071073,3.5433,1635.1,1634.9,0.99569364]
[1693765071482,3.5433,1635.1,1634.8,0.39220111]
[1693765071684,1.574,1635.0,1634.8,0.39220111]
[1693765071912,1.574,1635.0,1634.9,0.99569364]
[1693765072418,3.5433,1635.1,1634.8,0.39220111]
[1693765072917,3.5433,1635.1,1634.9,0.99569364]
[1693765073514,3.5433,1635.1,1634.8,0.39220111]
[1693765073686,3.5433,1635.1,1634.8,2.0905208]
[1693765074010,3.5433,1635.1,1634.9,2.05796821]
[1693765074203,3.5433,1635.1,1634.9,1.30360463]
[1693765074410,3.5433,1635.1,1634.9,0.30855686]
[1693765074715,3.5433,1635.1,1634.8,1.02760036]
[1693765074870,3.5433,1635.1,1634.9,1.06291228]
[1693765075075,3.5433,1635.1,1635.0,0.99498356]
[1693765075307,3.5433,1635.1,1634.8,1.02760036]
[1693765075478,3.5433,1635.1,1634.9,1.06292121]
[1693765076872,0.101,1635.1,1635.0,3.08185404]
[1693765077098,0.101,1635.1,1635.0,5.19453436]
[1693765077295,1.675,1635.3,1635.0,5.19453436]
[1693765077509,1.675,1635.3,1635.1,1.06280354]
[1693765077693,1.675,1635.3,1635.0,5.12671438]
[1693765077897,1.675,1635.3,1635.1,1.07491161]
[1693765078108,1.675,1635.3,1635.1,0.01211501]
[1693765078310,1.675,1635.3,1635.1,3.60785199]
[1693765078494,0.101,1635.3,1635.1,3.60785199]
[1693765078912,0.101,1635.3,1635.2,0.99473043]
[1693765079297,0.101,1635.3,1635.1,5.79185199]
[1693765080001,0.101,1635.3,1635.1,5.77973698]
[1693765080322,0.101,1635.3,1635.2,0.5779737]
[1693765081095,0.101,1635.3,1635.2,4.72258628]
[1693765081599,0.101,1635.3,1635.2,5.71731729]
[1693765081796,0.101,1635.3,1635.2,5.72942113]
[1693765081994,0.101,1635.3,1635.2,6.36482038]
[1693765082307,0.101,1635.3,1635.2,7.79793157]
[1693765082508,0.101,1635.4,1635.3,0.303]
[1693765082708,0.101,1635.4,1635.3,10.65689433]
[1693765083033,0.101,1635.4,1635.3,12.54967282]
[1693765083250,0.101,1635.4,1635.3,7.97567282]
[1693765083390,0.101,1635.4,1635.3,7.17699473]
[1693765083808,0.101,1635.4,1635.3,7.1890849]
[1693765084189,1.9984774,1635.8,1635.3,7.1890849]
[1693765084190,0.101,1636.0,1635.4,0.71890849]
[1693765084490,0.101,1636.0,1635.8,0.95226242]
[1693765084704,0.101,1636.0,1635.8,2.64954518]
[1693765085109,0.101,1636.0,1635.8,2.01502154]
[1693765085295,0.101,1636.0,1635.8,5.41429639]
[1693765085500,0.101,1636.0,1635.8,6.11443643]
[1693765085918,0.101,1636.0,1635.8,7.07786363]
[1693765086143,0.101,1636.0,1635.8,7.55786363]
[1693765086421,0.101,1636.0,1635.8,5.8081804]
[1693765086616,0.101,1636.0,1635.8,2.02618632]
[1693765086819,0.101,1636.0,1635.8,2.34448142]
[1693765087592,0.101,1636.0,1635.8,5.42633546]
[1693765088810,0.101,1636.0,1635.8,5.74375627]
[1693765089011,0.101,1636.0,1635.8,7.01304788]
[1693765089433,0.101,1636.0,1635.8,7.33046869]
[1693765089814,0.101,1636.0,1635.9,0.19708977]
[1693765090031,0.101,1636.0,1635.9,6.40324761]
[1693765090976,0.101,1636.0,1635.9,6.41526886]
[1693765091121,0.101,1636.0,1635.9,7.13572491]
[1693765091624,0.101,1636.0,1635.9,7.12818023]
[1693765091831,0.101,1636.0,1635.9,11.83561531]
[1693765092081,0.101,1636.0,1635.9,11.35709046]
[1693765092364,0.101,1636.0,1635.9,12.9367131]
[1693765092524,0.101,1636.0,1635.9,12.93109046]
[1693765092909,0.101,1636.0,1635.9,14.50986481]
[1693765093847,0.101,1636.0,1635.9,14.50894199]
[1693765094026,0.101,1636.0,1635.9,15.50852083]
[1693765094355,0.101,1636.3,1636.2,0.606]
[1693765094535,0.101,1636.3,1636.2,5.86175072]
[1693765094737,0.101,1636.3,1636.2,6.86925598]
[1693765094925,0.101,1636.3,1636.2,6.55328679]
[1693765095332,0.101,1636.7,1636.5,3.0]
[1693765095537,0.101,1636.7,1636.6,11.40438444]
[1693765095726,0.101,1637.0,1636.7,3.0]
[1693765096052,0.101,1637.0,1636.9,3.08185404]
[1693765096226,0.101,1637.6,1637.0,3.0]
[1693765096416,2.3906,1637.6,1637.1,4.62324226]
[1693765096616,0.101,1637.6,1637.4,3.08185404]
[1693765097454,1.5793774,1637.8,1637.4,3.08185404]
[1693765097656,1.2793774,1637.8,1637.4,3.08185404]
[1693765098218,30.41,1638.1,1637.4,3.39003944]
[1693765098528,1.574,1637.8,1637.4,3.08185404]
[1693765098726,1.474,1637.8,1637.4,3.08185404]
[1693765098917,1.574,1637.7,1637.4,3.08185404]
[1693765099319,1.574,1637.5,1636.9,0.96016302]
[1693765099528,1.574,1637.4,1637.0,3.08185404]
[1693765099832,0.3821023,1637.4,1637.0,0.00903936]
[1693765100025,3.3821023,1637.4,1637.0,0.00903936]
[1693765100446,1.574,1637.1,1637.0,3.0908934]
[1693765100640,3.733,1637.4,1637.0,3.0908934]
[1693765100921,4.1063,1637.4,1637.1,3.08185404]
[1693765101253,3.733,1637.4,1637.1,3.08185404]
[1693765101953,1.574,1637.5,1637.2,3.0898741]
[1693765102266,3.7246,1637.5,1637.2,3.0898741]
[1693765103020,2.178,1637.4,1637.2,3.0898741]
[1693765108531,30.41,1637.7,1637.2,6.0898741]
[1693765108766,32.6995,1637.7,1637.3,0.60898741]
[1693765108929,32.6995,1637.7,1637.4,3.08185404]
[1693765109131,2.2895,1637.7,1637.4,3.08185404]
[1693765109953,2.2895,1637.7,1637.5,0.93923644]
[1693765110133,4.4038,1637.8,1637.5,0.93923644]
[1693765110733,4.4038,1637.8,1637.5,3.08185404]
[1693765111065,2.2258,1637.8,1637.6,3.08185404]
[1693765111261,30.41,1638.0,1637.6,3.08185404]
[1693765111969,2.1904,1638.2,1637.7,3.9446702]
[1693765112261,2.1111,1638.3,1637.8,3.08185404]
[1693765112462,32.588,1638.5,1638.1,3.08185404]
[1693765112892,2.178,1638.5,1638.2,0.00514548]
[1693765113050,4.2891,1638.6,1638.3,3.08185404]
[1693765114160,4.2391,1638.6,1638.3,3.08185404]
[1693765115372,2.0611,1638.6,1638.3,3.08185404]
[1693765115689,4.2391,1638.6,1638.3,3.08185404]
[1693765116448,4.0891,1638.6,1638.3,3.08185404]
[1693765117056,4.49801,1638.6,1638.1,2.442353]
[1693765117258,2.178,1638.4,1638.2,3.08185404]
[1693765117553,35.7372,1638.8,1637.9,3.3081854]
[1693765117554,2.178,1638.7,1638.4,1.13156692]
[1693765117754,2.178,1638.7,1638.5,3.08185404]
[1693765118295,0.101,1639.1,1638.6,6.08185404]
[1693765118594,0.101,1640.2,1639.5,3.63712734]
[1693765118794,0.101,1640.2,1640.0,3.0]
[1693765119000,30.41,1641.4,1640.2,3.0]
[1693765119298,2.178,1641.5,1640.2,5.854]
[1693765119497,2.178,1640.6,1639.8,3.0]
[1693765119680,2.178,1640.6,1639.5,1.25092734]
[1693765119681,3.0,1641.0,1639.5,0.63712734]
[1693765119884,9.09521,1640.7,1639.6,0.48]
[1693765120063,9.09521,1640.7,1639.6,6.15082106]
[1693765120064,12.09042,1640.7,1639.6,6.15082106]
[1693765120390,6.09627,1640.4,1639.5,0.63712734]
[1693765120599,0.3821023,1640.3,1639.6,3.08185404]
[1693765120755,6.04627,1640.4,1639.6,3.08185404]
[1693765120756,9.09683,1640.2,1639.6,3.08185404]
[1693765120972,6.0965,1640.3,1639.6,3.08185404]
[1693765121153,6.09702,1640.2,1639.5,0.63712734]
[1693765121356,2.178,1639.6,1639.5,0.63712734]
[1693765121555,0.48218877,1639.6,1639.5,0.63712734]
[1693765121991,13.36058995,1639.6,1639.0,1.24254729]
[1693765122297,12.19979,1639.4,1639.0,1.24254729]
[1693765122498,3.3821023,1639.3,1639.0,1.24254729]
[1693765122791,2.178,1639.3,1639.1,0.00346771]
[1693765122957,3.105,1639.4,1639.1,0.00346771]
[1693765123154,3.105,1639.2,1639.1,0.00346771]
[1693765123362,9.20553,1639.2,1639.1,0.00346771]
[1693765123601,12.20553,1639.2,1639.1,0.00346771]
[1693765123955,6.105,1639.2,1639.1,1.11593259]
[1693765124896,6.105,1639.2,1639.1,1.11246488]
[1693765125059,7.32552,1639.2,1639.1,1.11246488]
[1693765125255,6.105,1639.2,1639.1,1.11246488]
[1693765125460,3.105,1639.2,1639.1,1.11246488]
[1693765125892,5.2274,1639.4,1639.1,1.11246488]
[1693765126769,3.105,1639.2,1639.1,1.11246488]
[1693765127283,21.3144425,1639.2,1639.1,1.11246488]
[1693765127461,23.82798905,1639.2,1639.1,0.0003371]
[1693765127661,24.30798905,1639.2,1638.8,3.45165219]
[1693765127861,3.105,1639.0,1638.8,3.45165219]
[1693765128095,12.20628,1639.0,1638.8,3.45165219]
[1693765128493,12.20628,1639.0,1638.9,4e-08]
[1693765128494,18.31128,1639.0,1638.9,4e-08]
[1693765128808,26.803793,1639.0,1638.8,3.45165219]
[1693765129096,9.10165,1638.9,1638.8,3.45165219]
[1693765131795,3.0,1638.9,1638.8,3.45165219]
[1693765132894,3.105,1639.0,1638.8,3.45165219]
[1693765133296,15.31132,1639.0,1638.8,3.45165219]
[1693765133500,10.61298604,1638.9,1638.8,3.45165219]
[1693765133661,22.81628604,1638.9,1638.8,3.45165219]
[1693765134284,29.39793604,1638.9,1638.8,3.45165219]
[1693765134565,16.71463604,1638.9,1638.8,3.45165219]
[1693765134863,13.632782,1638.9,1638.8,3.45165219]
[1693765135598,3.105,1639.0,1638.8,3.45165219]
[1693765135967,3.105,1639.0,1638.9,0.88177248]
[1693765136411,3.105,1639.0,1638.8,3.45165219]
[1693765136574,1.40863987,1639.0,1638.8,3.45165219]
[1693765137479,0.27772643,1639.0,1638.8,3.45165219]
[1693765138203,0.17772643,1639.0,1638.8,3.45165219]
[1693765138802,0.17772643,1639.0,1638.9,0.88169295]
[1693765139007,0.49549907,1639.0,1638.8,3.45165219]
[1693765139306,0.49549907,1639.0,1638.3,5.56744699]
[1693765139307,0.49549907,1639.0,1638.3,2.56744699]
[1693765139486,0.49549907,1639.0,1638.9,0.88173552]
[1693765139680,0.49549907,1639.0,1638.4,3.08185404]
[1693765140286,3.105,1638.8,1638.5,0.88203384]
[1693765140612,9.52413264,1639.0,1638.5,0.88203384]
[1693765140613,3.105,1638.6,1638.5,0.88203384]
[1693765140911,3.105,1638.8,1638.0,3.62129599]
[1693765141109,3.102995,1638.8,1638.1,4.14226594]
[1693765141307,3.102995,1638.8,1638.5,0.88065168]
[1693765141608,3.102995,1638.8,1638.1,3.08185404]
[1693765141815,3.7132945,1638.8,1638.2,0.3081854]
[1693765142014,3.7132945,1638.8,1638.3,3.08185404]
[1693765143380,34.4457,1639.1,1638.3,3.08185404]
[1693765143616,3.0,1639.0,1638.3,3.08185404]
[1693765146110,12.20634,1639.0,1638.3,3.08185404]
[1693765146588,18.30768,1639.0,1638.3,3.08185404]
[1693765147197,12.20634,1639.0,1638.3,3.08185404]
[1693765147393,1.220634,1638.9,1638.3,3.08185404]
[1693765147595,1.220634,1638.9,1638.4,0.88086113]
[1693765147917,1.220634,1638.9,1638.5,3.08185404]
[1693765149810,3.105,1638.8,1638.1,0.62129599]
[1693765149983,3.105,1638.6,1638.2,3.08185404]
[1693765150382,3.105,1638.6,1638.2,3.96288571]
[1693765150785,9.20777,1638.6,1638.2,0.88103167]
[1693765150988,3.105,1638.4,1638.0,0.62129599]
[1693765151333,0.3105,1638.3,1637.9,0.62129599]
[1693765151482,18.31164,1638.5,1638.4,1.69699022]
[1693765151683,12.20829,1638.5,1638.4,1.69699022]
[1693765152507,15.31329,1638.5,1638.4,1.69699022]
[1693765152710,24.386361,1638.5,1638.4,1.69699022]
[1693765153029,27.46821504,1638.5,1638.4,1.69699022]
[1693765154385,12.179721,1638.5,1638.4,1.69699022]
[1693765154791,18.282861,1638.5,1638.4,1.69699022]
[1693765156704,15.177861,1638.5,1638.4,1.69699022]
[1693765157523,14.04650637,1638.5,1638.4,2.75763518]
[1693765157724,20.14964637,1638.5,1638.4,1.69699022]
[1693765158019,20.14964637,1638.5,1638.4,2.75766298]
[1693765159187,26.25278637,1638.5,1638.4,2.75766298]
[1693765159530,36.30177635,1638.5,1638.4,1.69699022]
[1693765163120,36.30177635,1638.5,1638.4,2.75774106]
[1693765163303,36.30177635,1638.5,1638.4,1.06075084]
[1693765163691,36.30177635,1638.5,1638.3,0.62129599]
[1693765163891,3.08185404,1638.4,1638.3,0.62129599]
[1693765164222,24.39238404,1638.4,1638.3,0.62129599]
[1693765165028,12.18536404,1638.4,1638.3,0.62129599]
[1693765165224,6.074721,1638.5,1638.3,0.93009729]
[1693765165426,3.105,1638.5,1638.4,0.63045557]
[1693765165725,10.346739,1638.5,1638.4,0.63045557]
[1693765166316,10.346739,1638.5,1638.4,1.56055286]
[1693765166629,16.449889,1638.5,1638.4,1.56055286]
[1693765166827,19.449889,1638.5,1638.4,1.56055286]
[1693765166992,22.53174304,1638.5,1638.4,0.93009729]
[1693765167195,32.21989304,1638.5,1638.4,1.69164372]
[1693765167629,32.21989304,1638.5,1638.4,0.63089288]
[1693765167825,32.21989304,1638.5,1638.4,1.06075084]
[1693765168027,32.21989304,1638.5,1638.4,0.63089288]
[1693765168525,26.11674304,1638.5,1638.4,0.63089288]
[1693765168830,3.105,1638.5,1638.4,0.93009729]
[1693765169129,3.105,1638.5,1638.4,1.24006761]
[1693765170232,3.105,1638.5,1638.4,2.04522125]
[1693765170435,3.105,1638.5,1638.4,3.10597209]
[1693765171633,3.105,1638.5,1638.4,2.30081845]
[1693765172034,3.105,1638.5,1638.4,1.24006761]
[1693765172937,3.105,1638.5,1638.4,2.18691002]
[1693765174908,3.105,1638.5,1638.4,2.00759325]
[1693765175231,3.105,1638.5,1638.4,0.94684241]
[1693765175801,3.105,1638.5,1638.4,1.57818463]
[1693765177005,3.105,1638.5,1638.4,1.69209306]
[1693765177205,3.105,1638.5,1638.4,0.63134222]
[1693765177630,1.97371008,1638.5,1638.4,0.63134222]
[1693765179130,30.41,1639.0,1638.4,5.26876406]
[1693765179332,0.0083825,1639.2,1638.5,3.60873045]
[1693765179533,0.0083825,1639.2,1638.7,1.57764061]
[1693765179717,6.1089325,1639.2,1638.7,1.57764061]
[1693765180040,6.1089325,1639.2,1638.8,1.06034262]
[1693765180245,0.0083825,1639.2,1638.7,2.63798323]
[1693765180450,0.0083825,1639.2,1638.8,1.06030965]
[1693765180634,0.0083825,1639.2,1638.8,1.72695296]
[1693765180834,0.0083825,1639.2,1638.9,0.76340999]
[1693765181011,0.0083825,1639.2,1638.8,0.66664331]
[1693765181512,0.0083825,1639.2,1638.9,0.76340999]
[1693765181932,0.0083825,1639.2,1638.8,0.66664331]
[1693765182644,0.0083825,1639.2,1638.9,0.76340999]
[1693765182808,0.0083825,1639.2,1638.8,0.66664331]
[1693765183239,0.0083825,1639.2,1638.9,0.76340999]
[1693765183653,0.0083825,1639.2,1638.8,0.66664331]
[1693765184023,0.0083825,1639.2,1639.0,0.7631797]
[1693765184224,0.0083825,1639.2,1638.8,0.66664331]
[1693765184647,0.0083825,1639.2,1638.9,0.7632649]
[1693765184951,0.0083825,1639.2,1638.8,0.66664331]
[1693765185447,6.1090725,1639.2,1638.9,0.7632649]
[1693765185623,3.105,1639.0,1638.7,0.94658437]
[1693765185949,5.2487825,1639.2,1638.7,0.94658437]
[1693765186134,3.0,1639.1,1638.7,0.94658437]
[1693765186547,3.0,1639.1,1638.6,1.57768504]
[1693765186743,3.82487825,1639.1,1638.8,0.72148987]
[1693765187041,3.82487825,1639.1,1638.6,2.04970479]
[1693765187346,3.82487825,1639.1,1638.7,1.06031156]
[1693765187646,0.0079468,1639.0,1638.7,1.06031156]
[1693765188445,0.0079468,1639.0,1638.6,2.04970479]
[1693765188748,0.0079468,1639.0,1638.7,4.1421601]
[1693765189060,0.0079468,1639.0,1638.8,2.10557831]
[1693765189261,0.0079468,1639.0,1638.9,1.06030606]
[1693765190073,30.41,1639.6,1638.9,1.06030606]
[1693765190238,3.0,1639.5,1638.9,1.06030606]
[1693765191575,3.0,1639.6,1639.0,0.72136752]
[1693765191873,4.220371,1639.6,1639.0,0.72136752]
[1693765192186,4.220371,1639.6,1638.9,0.63105624]
[1693765192476,4.220371,1639.6,1638.9,4.7730676]
[1693765192773,6.243771,1639.6,1639.0,1.78152484]
[1693765192979,6.243771,1639.6,1638.9,3.71291028]
[1693765193154,6.243771,1639.6,1639.0,1.43144978]
[1693765193476,6.243771,1639.6,1639.0,0.37129103]
[1693765194655,6.243771,1639.6,1639.1,0.72128234]
[1693765196080,30.41,1639.8,1639.2,1.06000998]
[1693765196304,32.431,1639.8,1639.2,1.06000998]
[1693765196644,35.536,1639.8,1639.2,1.06000998]
[1693765197481,3.0,1639.7,1639.2,1.06000998]
[1693765197689,3.0,1639.7,1639.2,1.80282024]
[1693765197876,3.0,1639.7,1639.2,0.74281026]
[1693765198980,3.0,1639.7,1639.3,0.72111199]
[1693765201364,2.172,1640.0,1639.3,3.80296603]